bitfinex/quotes_SOLUSD_20240718
["timestamp","ask_amount","ask_price","bid_price","bid_amount"]
[1721330500694,64.19,156.41,156.31,6.3794]
[1721330500892,6.3947,156.38,156.34,6.3962]
[1721330501093,6.3943,156.39,156.34,6.3962]
[1721330501293,6.3936,156.41,156.36,6.3951]
[1721330501587,6.3948,156.38,156.34,6.3962]
[1721330501890,19.19,156.42,156.33,6.3966]
[1721330502116,15.9823,156.43,156.33,6.3966]
[1721330502117,6.3952,156.37,156.33,6.3966]
[1721330502291,6.3947,156.38,156.34,6.3962]
[1721330502486,6.3947,156.38,156.32,15.9925]
[1721330502701,6.3943,156.39,156.32,15.9925]
[1721330503010,6.3947,156.38,156.33,6.3963]
[1721330503196,6.3947,156.38,156.34,15.9902]
[1721330503792,6.3947,156.38,156.34,22.3865]
[1721330504000,6.3943,156.39,156.34,22.3865]
[1721330504207,6.3948,156.38,156.34,15.9902]
[1721330504423,6.3943,156.39,156.34,22.3862]
[1721330504592,6.3943,156.39,156.34,22.3864]
[1721330504793,19.19,156.42,156.34,22.3864]
[1721330504794,6.3947,156.38,156.34,22.3864]
[1721330504996,6.3947,156.38,156.34,15.9902]
[1721330505221,6.3955,156.36,156.31,6.3794]
[1721330505387,6.3953,156.37,156.31,6.3794]
[1721330505596,15.9807,156.44,156.36,6.3954]
[1721330505911,6.3935,156.41,156.37,6.3949]
[1721330506094,15.9807,156.44,156.35,6.3956]
[1721330506095,6.3939,156.4,156.35,6.3956]
[1721330506297,6.3935,156.41,156.36,6.3954]
[1721330506605,6.3929,156.43,156.33,1.2791044]
[1721330507195,6.3938,156.41,156.36,6.3954]
[1721330507393,6.3938,156.41,156.37,6.3949]
[1721330508198,6.3947,156.38,156.31,6.3794]
[1721330508401,19.19,156.42,156.35,6.3959]
[1721330508813,19.19,156.42,156.33,15.9912]
[1721330509015,19.19,156.4,156.33,15.9912]
[1721330509201,6.3947,156.38,156.33,22.3878]
[1721330509405,6.394,156.4,156.36,6.3954]
[1721330510023,6.394,156.4,156.35,22.385]
[1721330510212,6.3935,156.41,156.36,6.3954]
[1721330511220,6.3939,156.4,156.36,6.3954]
[1721330511425,6.3935,156.41,156.36,6.3954]
[1721330511593,6.66980691,156.45,156.38,6.3946]
[1721330511797,6.3929,156.43,156.38,6.3946]
[1721330513323,6.3945,156.39,156.33,15.9908]
[1721330513506,6.3939,156.4,156.34,1.27908863]
[1721330513706,35.172,156.43,156.34,6.3962]
[1721330514430,35.172,156.43,156.33,22.3873]
[1721330514605,6.3958,156.36,156.32,15.0905]
[1721330514925,6.3958,156.36,156.32,21.4874]
[1721330515425,6.3952,156.37,156.32,21.4874]
[1721330515819,19.19,156.4,156.32,15.0905]
[1721330516025,19.19,156.4,156.32,21.4875]
[1721330516319,6.3961,156.35,156.31,6.3794]
[1721330516524,6.3974,156.32,156.28,16.3029]
[1721330516702,6.3967,156.33,156.28,22.7015]
[1721330516897,6.3967,156.33,156.29,6.3982]
[1721330519200,19.19,156.34,156.25,15.9994]
[1721330519605,6.3991,156.27,156.23,6.4005]
[1721330520031,6.3996,156.26,156.22,16.0026]
[1721330520201,6.3988,156.28,156.23,6.4006]
[1721330520401,6.3988,156.28,156.23,6.4004]
[1721330520601,6.3992,156.27,156.22,22.4037]
[1721330521098,6.399,156.28,156.23,6.4007]
[1721330521523,6.3992,156.27,156.22,22.4037]
[1721330521827,6.3997,156.26,156.22,16.0026]
[1721330522202,6.3992,156.27,156.22,22.4036]
[1721330522924,6.3996,156.26,156.22,16.0026]
[1721330523715,6.3991,156.28,156.22,22.4037]
[1721330523930,19.19,156.3,156.22,16.0026]
[1721330524225,6.3996,156.26,156.22,22.4037]
[1721330524930,6.3996,156.26,156.22,16.0026]
[1721330525136,25.5907,156.24,156.19,6.402]
[1721330525322,19.19,156.25,156.19,22.4076]
[1721330525622,6.4007,156.24,156.19,22.4079]
[1721330525827,6.4013,156.22,156.17,6.4028]
[1721330526016,6.4017,156.21,156.16,32.0003]
[1721330526203,16.0006,156.25,156.16,22.4122]
[1721330526533,64.19,156.24,156.16,22.4122]
[1721330526844,35.1946,156.21,156.13,16.0117]
[1721330527015,6.4029,156.18,156.14,6.4043]
[1721330527205,6.4025,156.19,156.14,6.4043]
[1721330527601,6.4029,156.18,156.14,6.4043]
[1721330527830,6.4029,156.18,156.13,22.4165]
[1721330528217,6.4041,156.15,156.12,0.7961551]
[1721330528518,6.4032,156.18,156.13,6.4048]
[1721330528722,43.646,156.23,156.15,6.404]
[1721330528906,65.0,156.22,156.12,0.7961551]
[1721330529100,81.0037,156.22,156.12,0.7961551]
[1721330529301,6.4036,156.17,156.13,6.4048]
[1721330529512,19.19,156.21,156.13,16.0115]
[1721330529726,6.4004,156.24,156.19,6.4022]
[1721330529924,28.37,156.26,156.15,22.765]
[1721330530110,6.4024,156.2,156.16,6.4035]
[1721330530427,6.4016,156.22,156.17,6.403]
[1721330530627,44.3697,156.26,156.18,6.4027]
[1721330530628,25.5907,156.24,156.18,6.4027]
[1721330530833,28.37,156.26,156.15,16.361]
[1721330531044,6.4004,156.24,156.19,16.0061]
[1721330531230,6.4012,156.22,156.19,16.0061]
[1721330531523,16.0005,156.25,156.15,16.361]
[1721330531703,19.19,156.24,156.12,0.7961551]
[1721330531910,19.19,156.24,156.16,6.4036]
[1721330532124,6.4025,156.19,156.15,16.0097]
[1721330532502,6.4021,156.2,156.15,22.4137]
[1721330532708,6.4026,156.19,156.15,16.0097]
[1721330532920,19.19,156.19,156.13,6.4049]
[1721330533117,6.4042,156.15,156.12,0.7961551]
[1721330533313,6.4036,156.16,156.12,7.2013551]
[1721330533627,6.4033,156.17,156.12,0.7961551]
[1721330534107,6.4033,156.17,156.12,7.2013551]
[1721330534307,6.4038,156.16,156.12,0.7961551]
[1721330535204,25.86021725,156.2,156.12,0.7961551]
[1721330535428,6.4046,156.14,156.12,0.7961551]
[1721330535939,6.4042,156.15,156.12,0.7961551]
[1721330536233,19.19,156.16,156.12,0.7961551]
[1721330536441,6.4044,156.15,156.12,0.7961551]
[1721330536808,95.7729,156.19,156.12,0.7961551]
[1721330537007,64.19,156.19,156.12,0.7961551]
[1721330537231,19.19,156.17,156.12,7.2010551]
[1721330537539,6.4039,156.16,156.12,0.7961551]
[1721330537907,6.4041,156.15,156.12,0.7961551]
[1721330538429,6.4037,156.16,156.12,0.7961551]
[1721330538623,6.4042,156.15,156.12,0.7961551]
[1721330538818,25.5938,156.16,156.12,0.7961551]
[1721330539019,19.19,156.16,156.12,0.7961551]
[1721330539215,25.5937,156.16,156.12,0.7961551]
[1721330539439,6.4042,156.15,156.12,0.7961551]
[1721330540137,19.19,156.18,156.13,6.4048]
[1721330540334,19.19,156.17,156.12,0.7961551]
[1721330540644,6.404,156.16,156.12,0.7961551]
[1721330540825,6.4048,156.14,156.12,0.7961551]
[1721330541014,19.19,156.16,156.12,0.7961551]
[1721330542012,25.5949,156.13,156.12,0.7961551]
[1721330542429,70.5949,156.13,156.12,0.7961551]
[1721330543636,78.18148251,156.13,156.12,0.7961551]
[1721330543842,98.18148251,156.13,156.12,0.7961551]
[1721330544722,98.18148251,156.13,156.12,5.51e-05]
[1721330545122,98.18148251,156.13,155.98,22.1092]
[1721330545123,6.4087,156.04,155.98,22.1092]
[1721330545324,6.4087,156.04,155.94,6.0821]
[1721330545325,19.19,156.04,155.94,6.0821]
[1721330545520,19.19,156.02,155.95,16.0303]
[1721330545720,19.19,156.02,155.95,22.4425]
[1721330545939,6.4098,156.01,155.96,6.4118]
[1721330546117,6.4103,156.0,155.95,22.4425]
[1721330546436,22.4476,156.06,155.9,6.0477]
[1721330546437,25.601,155.98,155.9,6.0477]
[1721330546635,25.601,155.98,155.89,6.4147]
[1721330546933,105.898,155.98,155.87,16.0382]
[1721330547247,6.4143,155.91,155.86,6.0477]
[1721330547419,6.4137,155.92,155.86,6.0477]
[1721330547617,6.4129,155.94,155.89,6.4147]
[1721330547816,19.19,155.95,155.89,6.4147]
[1721330548119,19.19,155.95,155.87,16.0388]
[1721330548120,50.93900423,156.03,155.88,1.28297777]
[1721330548330,43.667,156.03,155.86,6.0477]
[1721330548512,1.48083732,156.02,155.92,16.0334]
[1721330548840,1.48083732,156.02,155.96,6.4115]
[1721330549012,1.48083732,156.02,155.86,6.0477]
[1721330549013,6.4125,155.95,155.87,15.9387]
[1721330549209,6.4118,155.97,155.9,6.4143]
[1721330549406,7.89263732,155.97,155.9,6.414]
[1721330549615,1.48083732,155.97,155.9,22.4498]
[1721330549908,6.4119,155.96,155.9,22.4498]
[1721330550116,1.48083732,155.97,155.9,16.0356]
[1721330550414,1.48083732,155.97,155.87,15.9387]
[1721330550736,1.48083732,155.97,155.96,6.4119]
[1721330551236,19.19,156.04,155.94,7.61835009]
[1721330551407,25.5998,156.02,155.96,6.4115]
[1721330551613,6.4107,155.99,155.95,15.4934]
[1721330551916,6.4112,155.98,155.94,6.3359]
[1721330552111,6.4129,155.94,155.91,15.4934]
[1721330552318,19.19,155.96,155.9,6.1443]
[1721330552515,19.19,155.95,155.87,31.5323]
[1721330552738,25.603,155.94,155.87,31.5323]
[1721330552927,25.603,155.94,155.87,37.9475]
[1721330553121,19.19,155.94,155.89,6.4147]
[1721330553324,19.19,155.94,155.87,31.5323]
[1721330553521,19.19,155.93,155.87,31.5323]
[1721330553719,6.4136,155.92,155.87,16.0389]
[1721330553921,6.4148,155.89,155.84,6.4167]
[1721330554141,6.4147,155.9,155.83,31.5355]
[1721330554342,19.19,155.96,155.86,6.4158]
[1721330554546,25.6038,155.92,155.87,6.4155]
[1721330554728,51.4125,155.95,155.89,6.4145]
[1721330554927,16.6453,155.99,155.83,15.4934]
[1721330555120,16.6453,155.99,155.89,6.4144]
[1721330555321,6.4137,155.92,155.87,6.4155]
[1721330555522,6.4135,155.93,155.87,6.4155]
[1721330555740,19.19,155.94,155.83,15.4934]
[1721330556245,19.19,155.91,155.83,15.4934]
[1721330556544,19.19,155.91,155.86,16.039]
[1721330556738,6.4138,155.92,155.87,6.4155]
[1721330556955,44.3995,155.97,155.88,6.415]
[1721330557241,51.4121,155.96,155.91,6.4138]
[1721330557543,45.0,155.96,155.86,16.0397]
[1721330557752,6.4127,155.94,155.89,6.4147]
[1721330557926,6.4132,155.93,155.87,6.4152]
[1721330558119,6.4135,155.92,155.88,6.4151]
[1721330558320,19.19,155.94,155.89,6.4146]
[1721330558546,6.4124,155.95,155.9,6.4143]
[1721330558752,19.19,155.97,155.84,1.28292466]
[1721330558925,19.19,155.97,155.93,6.4128]
[1721330559121,19.19,155.97,155.84,45.0]
[1721330559328,6.414,155.91,155.86,6.4159]
[1721330559644,25.6035,155.93,155.85,16.041]
[1721330559963,25.6035,155.92,155.88,6.415]
[1721330560253,16.6453,155.99,155.89,16.0362]
[1721330560553,6.4115,155.97,155.92,6.4135]
[1721330560729,16.6453,155.99,155.84,45.0]
[1721330560925,6.4131,155.93,155.88,16.0377]
[1721330561129,19.19,155.96,155.84,45.0]
[1721330561334,19.19,155.96,155.84,1.28318897]
[1721330561539,25.6031,155.93,155.88,6.415]
[1721330561747,6.414,155.91,155.87,16.0381]
[1721330561949,6.4136,155.92,155.87,22.4537]
[1721330562123,25.6036,155.92,155.87,22.4537]
[1721330562726,6.65660159,155.98,155.83,15.4934]
[1721330563053,6.4136,155.92,155.87,6.4155]
[1721330563750,25.6032,155.93,155.88,6.4151]
[1721330564425,25.6032,155.93,155.89,6.4147]
[1721330564627,6.4135,155.92,155.88,6.4151]
[1721330565536,6.4135,155.92,155.87,6.4154]
[1721330565742,19.19,155.94,155.83,15.4934]
[1721330565928,6.4144,155.9,155.85,6.4163]
[1721330566128,6.4148,155.89,155.85,6.4163]
[1721330566450,16.0302,155.96,155.87,6.4152]
[1721330566759,6.4137,155.92,155.87,6.4154]
[1721330566939,19.19,155.97,155.91,6.4138]
[1721330567248,25.6031,155.94,155.89,22.4508]
[1721330567446,19.19,155.94,155.89,22.4508]
[1721330567870,28.87140159,155.98,155.89,22.4508]
[1721330568155,6.4128,155.94,155.89,22.4508]
[1721330568457,6.4132,155.93,155.89,22.4508]
[1721330568657,6.4138,155.92,155.87,6.4154]
[1721330568834,6.4143,155.9,155.83,15.4934]
[1721330569036,6.4134,155.93,155.88,6.415]
[1721330569249,25.6026,155.95,155.83,15.4934]
[1721330569554,25.6026,155.95,155.9,6.414]
[1721330569870,12.84310159,155.98,155.83,15.4934]
[1721330570056,19.19,155.96,155.84,45.0]
[1721330570358,6.4128,155.94,155.89,6.4146]
[1721330570531,6.4128,155.94,155.9,16.0349]
[1721330570852,6.4124,155.95,155.9,22.449]
[1721330571854,19.19,155.97,155.88,6.415]
[1721330572063,6.4139,155.92,155.87,22.4542]
[1721330572227,19.19,155.95,155.87,16.0387]
[1721330572427,6.4142,155.91,155.87,16.0387]
[1721330572949,6.4142,155.91,155.87,22.4542]
[1721330573151,6.4132,155.93,155.88,6.4148]
[1721330573333,6.4126,155.95,155.9,6.4142]
[1721330573533,6.4128,155.94,155.89,22.4508]
[1721330573945,6.4131,155.93,155.89,22.4508]
[1721330574556,6.414,155.91,155.87,6.4155]
[1721330574738,6.4143,155.9,155.86,22.455]
[1721330574940,6.4148,155.89,155.86,16.0393]
[1721330575133,6.4144,155.9,155.86,16.0393]
[1721330575357,6.4147,155.89,155.86,16.0393]
[1721330575541,19.19,155.93,155.86,16.0393]
[1721330575746,6.4135,155.92,155.86,16.0393]
[1721330575948,6.4143,155.9,155.86,16.0393]
[1721330576137,6.414,155.91,155.86,16.0393]
[1721330576758,19.19,155.95,155.88,16.0375]
[1721330577066,6.4134,155.93,155.88,16.0375]
[1721330577836,6.4136,155.92,155.88,16.0375]
[1721330578344,6.4136,155.92,155.88,22.4526]
[1721330578548,6.4141,155.91,155.86,6.4157]
[1721330579052,6.4144,155.9,155.86,6.4159]
[1721330579259,19.19,155.93,155.85,16.0405]
[1721330579659,6.4148,155.89,155.85,22.4567]
[1721330579860,6.4144,155.9,155.85,22.4567]
[1721330580362,6.4144,155.9,155.86,6.4159]
[1721330580563,6.4149,155.89,155.85,22.4568]
[1721330580862,6.4144,155.9,155.85,22.4568]
[1721330581361,19.19,155.9,155.83,15.4934]
[1721330581556,6.4157,155.87,155.83,15.4934]
[1721330581865,6.4157,155.87,155.83,21.9103]
[1721330582166,19.19,155.9,155.84,6.4167]
[1721330582167,6.4153,155.88,155.84,6.4167]
[1721330582852,6.4153,155.88,155.83,21.9105]
[1721330583551,6.4158,155.87,155.83,15.4934]
[1721330584158,6.4151,155.89,155.83,15.4934]
[1721330584348,6.4153,155.88,155.84,6.4167]
[1721330584557,6.4148,155.89,155.85,6.4163]
[1721330584887,6.4148,155.89,155.83,15.4934]
[1721330585071,6.4148,155.89,155.85,6.4162]
[1721330585359,6.4144,155.9,155.86,6.4158]
[1721330585540,19.19,155.93,155.87,6.4154]
[1721330585736,19.19,155.93,155.83,15.4934]
[1721330585964,6.4148,155.89,155.85,6.4163]
[1721330586361,6.4144,155.9,155.86,16.0397]
[1721330586556,6.4144,155.9,155.86,22.4556]
[1721330587063,6.4149,155.89,155.85,6.4163]
[1721330587254,6.4154,155.88,155.83,37.9528]
[1721330587456,6.4149,155.89,155.85,6.4163]
[1721330587655,34.2591,155.89,155.83,16.0423]
[1721330587851,34.2591,155.89,155.8,16.0458]
[1721330588061,6.4165,155.85,155.81,7.2140551]
[1721330588370,6.4161,155.86,155.81,0.7961551]
[1721330588556,6.4161,155.86,155.82,6.4176]
[1721330588753,6.4153,155.88,155.81,0.7961551]
[1721330588970,19.19,155.91,155.85,6.4163]
[1721330589152,6.414,155.91,155.87,6.4155]
[1721330589351,15.0691,155.93,155.81,0.7961551]
[1721330589668,6.4147,155.89,155.85,6.4163]
[1721330590270,6.4153,155.88,155.83,16.0423]
[1721330590472,6.4144,155.9,155.86,6.416]
[1721330591277,6.4143,155.9,155.86,6.4159]
[1721330591773,6.4139,155.91,155.87,6.4155]
[1721330592388,42.75285073,155.97,155.85,22.7208]
[1721330592389,25.8543648,155.96,155.85,22.7208]
[1721330592582,25.8543648,155.96,155.9,6.4142]
[1721330592583,6.4123,155.95,155.9,6.4142]
[1721330593077,6.4131,155.93,155.89,6.4146]
[1721330593378,6.4128,155.94,155.9,6.4142]
[1721330593745,16.3206,155.97,155.86,45.0]
[1721330593946,6.412,155.96,155.91,6.4139]
[1721330594173,6.4123,155.95,155.91,6.4139]
[1721330594671,6.4123,155.95,155.9,22.4498]
[1721330594852,16.3206,155.97,155.92,16.0331]
[1721330594853,6.412,155.96,155.92,16.0331]
[1721330595050,35.2215,155.95,155.86,61.0399]
[1721330595262,19.19,155.95,155.87,6.4155]
[1721330595458,19.19,155.95,155.86,16.0399]
[1721330595658,19.19,155.95,155.89,6.4146]
[1721330595949,19.19,155.95,155.86,16.0399]
[1721330596155,19.19,155.95,155.88,6.415]
[1721330596355,6.4132,155.93,155.89,6.4147]
[1721330596663,6.4128,155.94,155.89,6.4145]
[1721330597061,6.4122,155.96,155.91,6.4138]
[1721330597359,16.3206,155.97,155.92,6.4134]
[1721330597360,22.7321,155.97,155.92,6.4134]
[1721330597564,6.4119,155.96,155.92,6.4134]
[1721330597765,6.4119,155.96,155.91,6.4139]
[1721330597956,6.4124,155.95,155.9,22.4497]
[1721330598156,6.4124,155.95,155.91,6.4138]
[1721330599092,6.4119,155.96,155.91,6.4138]
[1721330599577,6.4124,155.95,155.9,22.4497]
[1721330600386,19.19,155.98,155.89,6.4147]
[1721330600879,6.4128,155.94,155.9,6.4143]
[1721330601682,19.19,155.98,155.85,22.7208]
[1721330601886,19.19,155.98,155.91,6.4136]
[1721330602983,6.4124,155.95,155.91,6.4136]
[1721330603482,25.84231833,156.0,155.86,45.0]
[1721330603678,6.4119,155.96,155.87,1.28262073]
[1721330603871,32.3202,156.01,155.85,22.7208]
[1721330603872,6.4126,155.95,155.9,6.414]
[1721330604061,6.4136,155.92,155.88,6.415]
[1721330604279,16.2949,156.01,155.88,6.415]
[1721330604280,6.4132,155.93,155.88,6.415]
[1721330604472,19.19,155.96,155.9,6.4142]
[1721330604674,28.37,156.0,155.91,6.4136]
[1721330604675,6.4123,155.95,155.91,6.4136]
[1721330604975,16.2949,156.01,155.93,16.0324]
[1721330605174,6.4105,156.0,155.95,6.4119]
[1721330605371,16.2949,156.01,155.93,16.0324]
[1721330605577,6.4112,155.98,155.94,6.4126]
[1721330605964,6.4105,156.0,155.95,6.4122]
[1721330606593,6.4106,155.99,155.95,6.4122]
[1721330607174,32.3197,156.01,155.93,16.0324]
[1721330607704,6.4118,155.97,155.93,16.0324]
[1721330607992,6.4119,155.96,155.92,6.4134]
[1721330608193,6.412,155.96,155.91,6.4139]
[1721330608566,19.19,155.98,155.9,16.0352]
[1721330608791,6.413,155.94,155.9,22.4494]
[1721330609097,6.412,155.96,155.9,16.0352]
[1721330609295,6.412,155.96,155.92,6.4132]
[1721330609465,19.19,155.98,155.88,23.2725]
[1721330609665,6.4135,155.92,155.88,29.6875]
[1721330609866,6.4132,155.93,155.88,29.6875]
[1721330610175,6.4135,155.92,155.88,29.6875]
[1721330610580,6.4132,155.93,155.89,6.4145]
[1721330610783,6.4128,155.94,155.89,6.4145]
[1721330610973,6.4128,155.94,155.9,6.4142]
[1721330611277,6.4134,155.93,155.89,6.4147]
[1721330611588,19.19,155.98,155.88,23.2725]
[1721330611795,28.37,156.0,155.88,23.2725]
[1721330611796,19.19,155.95,155.88,29.6876]
[1721330612305,6.4131,155.93,155.88,29.6876]
[1721330612591,19.19,155.95,155.86,16.0396]
[1721330612791,6.4132,155.93,155.88,6.415]
[1721330613302,6.4136,155.92,155.88,6.415]
[1721330613460,25.6036,155.92,155.88,6.415]
[1721330613667,6.2431,155.93,155.8,6.663]
[1721330613890,6.414,155.91,155.86,6.4159]
[1721330614087,19.19,155.92,155.82,1.28327323]
[1721330614291,6.4139,155.91,155.85,16.0401]
[1721330614472,6.4148,155.89,155.85,16.0401]
[1721330614672,19.19,155.92,155.86,6.4157]
[1721330614988,6.4143,155.9,155.85,22.4564]
[1721330615195,6.4143,155.9,155.86,6.4159]
[1721330615371,19.19,155.94,155.87,16.0384]
[1721330615572,6.4139,155.92,155.87,22.4538]
[1721330615877,6.4131,155.93,155.88,6.4151]
[1721330616270,21.7617,155.95,155.89,6.4147]
[1721330616472,19.19,155.96,155.91,6.4136]
[1721330616775,6.0483,155.97,155.87,6.2966]
[1721330616776,19.19,155.94,155.87,6.2966]
[1721330616976,19.19,155.94,155.86,22.8673]
[1721330617182,35.2224,155.94,155.86,16.4517]
[1721330617397,6.4146,155.9,155.86,16.4517]
[1721330617696,6.4146,155.9,155.85,6.4161]
[1721330617866,6.4139,155.91,155.83,6.2966]
[1721330618071,6.4139,155.91,155.86,6.4159]
[1721330618381,6.4143,155.9,155.86,6.4159]
[1721330618575,6.4139,155.91,155.86,6.4159]
[1721330618991,6.4144,155.9,155.86,6.4159]
[1721330619196,6.4144,155.9,155.85,22.4567]
[1721330619787,6.414,155.91,155.86,6.416]
[1721330620183,35.2224,155.94,155.85,16.0404]
[1721330620184,6.4135,155.92,155.85,16.0404]
[1721330620392,19.29,155.96,155.86,46.28304161]
[1721330620591,19.29,155.95,155.83,6.2966]
[1721330620784,19.29,155.95,155.87,6.4155]
[1721330620785,6.4136,155.92,155.87,6.4155]
[1721330620988,19.29,155.95,155.86,16.0396]
[1721330620989,6.4132,155.93,155.88,6.415]
[1721330621279,6.4132,155.93,155.84,45.0]
[1721330621499,6.4136,155.92,155.88,6.415]
[1721330621690,6.4144,155.9,155.86,6.4158]
[1721330622207,6.414,155.91,155.86,6.4158]
[1721330622673,19.29,155.93,155.88,6.4149]
[1721330622674,6.4136,155.92,155.88,6.4149]
[1721330622879,6.4136,155.92,155.87,6.4154]
[1721330623274,19.29,155.93,155.87,6.4154]
[1721330623491,6.4141,155.91,155.86,22.4552]
[1721330623893,6.4144,155.9,155.86,22.4552]
[1721330624496,6.414,155.91,155.87,6.4155]
[1721330624801,19.29,155.93,155.86,16.0393]
[1721330625298,6.4157,155.87,155.83,16.0426]
[1721330625674,44.62,155.91,155.83,22.4597]
[1721330625976,6.4157,155.87,155.83,22.4597]
[1721330626178,44.62,155.91,155.82,22.8692]
[1721330626179,6.416,155.86,155.82,22.8692]
[1721330626401,6.416,155.86,155.82,6.4175]
[1721330627608,6.4156,155.87,155.82,6.4175]
[1721330627787,6.415,155.89,155.84,6.4167]
[1721330628283,6.4148,155.89,155.84,6.4167]
[1721330628493,6.4143,155.91,155.87,6.4155]
[1721330628682,6.4143,155.91,155.85,16.0404]
[1721330628683,6.4144,155.9,155.85,16.0404]
[1721330628884,16.1117,155.92,155.82,16.0437]
[1721330629084,16.1117,155.92,155.84,16.0412]
[1721330629285,6.4148,155.89,155.84,22.4577]
[1721330629581,16.1117,155.92,155.84,16.0412]
[1721330629582,6.4142,155.91,155.84,16.0412]
[1721330629785,6.4145,155.9,155.85,6.4163]
[1721330630291,6.4148,155.89,155.84,22.4579]
[1721330630798,6.4152,155.88,155.84,22.4579]
[1721330630985,51.4361,155.92,155.83,6.4172]
[1721330631379,6.4155,155.88,155.83,6.4172]
[1721330632007,6.4147,155.89,155.85,6.4162]
[1721330632316,16.0311,155.95,155.86,45.0]
[1721330632611,6.413,155.94,155.89,6.4147]
[1721330632787,15.7072,155.96,155.86,51.4471]
[1721330632987,6.413,155.94,155.89,16.0363]
[1721330633186,6.413,155.94,155.89,22.4508]
[1721330633398,6.4132,155.93,155.89,16.0363]
[1721330633582,6.4135,155.92,155.89,16.0363]
[1721330633787,6.4132,155.93,155.89,16.0363]
[1721330634314,19.29,155.95,155.86,51.4471]
[1721330634494,6.4142,155.91,155.86,57.8631]
[1721330634806,6.4144,155.9,155.86,16.0397]
[1721330635009,6.4147,155.9,155.82,6.1567]
[1721330635207,6.4147,155.9,155.83,45.0]
[1721330635914,6.4147,155.9,155.85,6.4163]
[1721330636113,6.4147,155.9,155.86,6.4159]
[1721330636410,19.29,155.92,155.83,45.0]
[1721330636609,19.29,155.95,155.88,16.0379]
[1721330636817,6.4135,155.93,155.88,22.4528]
[1721330637185,6.4135,155.93,155.89,6.4145]
[1721330637493,6.4128,155.94,155.89,6.4145]
[1721330638422,22.97920423,155.96,155.91,22.4486]
[1721330638423,15.7072,155.96,155.91,22.4486]
[1721330638712,15.7072,155.96,155.9,6.4142]
[1721330638928,6.4135,155.92,155.88,6.415]
[1721330639289,15.7072,155.96,155.89,6.4146]
[1721330639519,34.9972,155.96,155.91,16.0347]
[1721330639723,6.4123,155.95,155.91,16.0347]
[1721330639892,6.4127,155.94,155.91,16.0347]
[1721330640091,6.4127,155.94,155.9,6.4142]
[1721330640399,34.9972,155.96,155.89,6.4146]
[1721330640400,6.4131,155.93,155.89,6.4146]
[1721330640604,15.7072,155.96,155.9,16.0349]
[1721330640899,23.29920423,155.99,155.9,16.0349]
[1721330640900,6.4124,155.95,155.9,16.0349]
[1721330641105,16.0272,155.99,155.89,6.353]
[1721330641289,16.0295,155.97,155.88,15.7877]
[1721330641490,6.4136,155.92,155.87,22.4538]
[1721330641809,6.4143,155.9,155.85,6.3318]
[1721330642020,6.414,155.91,155.86,6.4157]
[1721330642202,6.4145,155.9,155.86,6.4157]
[1721330642385,19.29,155.94,155.86,6.4157]
[1721330642386,6.414,155.91,155.86,6.4157]
[1721330642590,34.6418,155.93,155.86,6.4157]
[1721330643122,6.4139,155.92,155.86,16.0394]
[1721330643291,16.5205,155.97,155.87,46.28304231]
[1721330643617,6.412,155.96,155.88,6.5877]
[1721330643819,6.412,155.96,155.91,6.4138]
[1721330644128,19.29,155.98,155.9,22.4497]